[Event "Titled Tuesday Blitz February 07 Late 2023"]
[White "Gutkin, Ilya"]
[Black "O`Gorman, Tom"]
[WhiteFideId "16203470"]
[BlackFideId "2508249"]
[WhiteElo "2273"]
[BlackElo "2355"]
[Result "1-0"]
[Round "09"]
[TimeControl "180+2"]
[Date "2023.02.07"]
[WhiteClock "0:00:10"]
[BlackClock "0:00:23"]

1. Nf3 {[%clk 0:03:00]}  g6 {[%clk 0:02:56]} 2. d4 {[%clk 0:03:00]}  Nf6 {[%clk 0:02:56]} 3. Nbd2 {[%clk 0:02:58]}  Bg7 {[%clk 0:02:56]} 4. e4 {[%clk 0:02:58]}  d6 {[%clk 0:02:57]} 5. c3 {[%clk 0:02:58]}  O-O {[%clk 0:02:49]} 6. Bd3 {[%clk 0:02:58]}  e5 {[%clk 0:02:46]} 7. O-O {[%clk 0:02:56]}  Nc6 {[%clk 0:02:45]} 8. Re1 {[%clk 0:02:54]}  Bg4 {[%clk 0:02:42]} 9. h3 {[%clk 0:02:54]}  Bd7 {[%clk 0:02:40]} 10. dxe5 {[%clk 0:02:48]}  dxe5 {[%clk 0:02:38]} 11. Nc4 {[%clk 0:02:47]}  Qe7 {[%clk 0:02:38]} 12. Bg5 {[%clk 0:02:44]}  h6 {[%clk 0:02:37]} 13. Bh4 {[%clk 0:02:43]}  Rad8 {[%clk 0:02:36]} 14. Qc2 {[%clk 0:02:41]}  g5 {[%clk 0:02:22]} 15. Bg3 {[%clk 0:02:41]}  Nh5 {[%clk 0:02:23]} 16. Ne3 {[%clk 0:02:33]}  Nf4 {[%clk 0:02:22]} 17. Nf5 {[%clk 0:02:21]}  Qf6 {[%clk 0:02:20]} 18. Bxf4 {[%clk 0:02:16]}  gxf4 {[%clk 0:02:09]} 19. Nxg7 {[%clk 0:02:13]}  Kxg7 {[%clk 0:02:07]} 20. Bb5 {[%clk 0:02:14]}  Ne7 {[%clk 0:02:03]} 21. Bxd7 {[%clk 0:02:13]}  Rxd7 {[%clk 0:02:04]} 22. Qa4 {[%clk 0:01:59]}  c6 {[%clk 0:01:59]} 23. Qxa7 {[%clk 0:01:55]}  Kh8 {[%clk 0:01:56]} 24. Qc5 {[%clk 0:01:52]}  Ng6 {[%clk 0:01:51]} 25. Rad1 {[%clk 0:01:47]}  Rfd8 {[%clk 0:01:49]} 26. Rxd7 {[%clk 0:01:45]}  Rxd7 {[%clk 0:01:50]} 27. a4 {[%clk 0:01:28]}  Qe6 {[%clk 0:01:46]} 28. a5 {[%clk 0:01:22]}  Kg7 {[%clk 0:01:45]} 29. b4 {[%clk 0:01:17]}  Rd3 {[%clk 0:01:40]} 30. Kf1 {[%clk 0:00:43]}  f6 {[%clk 0:01:30]} 31. Ke2 {[%clk 0:00:43]}  Qd7 {[%clk 0:01:28]} 32. Qc4 {[%clk 0:00:42]}  Rd6 {[%clk 0:01:23]} 33. Qb3 {[%clk 0:00:40]}  f5 {[%clk 0:01:07]} 34. exf5 {[%clk 0:00:30]}  Qxf5 {[%clk 0:01:06]} 35. Kf1 {[%clk 0:00:29]}  e4 {[%clk 0:00:46]} 36. Nd4 {[%clk 0:00:28]}  Qd5 {[%clk 0:00:33]} 37. Qc2 {[%clk 0:00:23]}  f3 {[%clk 0:00:22]} 38. gxf3 {[%clk 0:00:11]}  exf3 {[%clk 0:00:20]} 39. Nf5+ {[%clk 0:00:11]}  Kf6 {[%clk 0:00:17]} 40. Nxd6 {[%clk 0:00:10]}  Qxd6 {[%clk 0:00:17]} 41. Qe4 {[%clk 0:00:09]}  Ne5 {[%clk 0:00:17]} 42. Qxe5+ {[%clk 0:00:08]}  Qxe5 {[%clk 0:00:17]} 43. Rxe5 {[%clk 0:00:09]}  Kxe5 {[%clk 0:00:18]} 44. Ke1 {[%clk 0:00:08]}  Kd5 {[%clk 0:00:17]} 45. Kd2 {[%clk 0:00:08]}  Kc4 {[%clk 0:00:17]} 46. Kc2 {[%clk 0:00:09]}  c5 {[%clk 0:00:17]} 47. bxc5 {[%clk 0:00:08]}  Kxc5 {[%clk 0:00:18]} 48. Kd3 {[%clk 0:00:08]}  Kd5 {[%clk 0:00:18]} 49. Ke3 {[%clk 0:00:08]}  Kc4 {[%clk 0:00:19]} 50. Kxf3 {[%clk 0:00:08]}  Kxc3 {[%clk 0:00:19]} 51. Ke4 {[%clk 0:00:06]}  Kb4 {[%clk 0:00:20]} 52. f4 {[%clk 0:00:07]}  Kxa5 {[%clk 0:00:20]} 53. f5 {[%clk 0:00:08]}  b5 {[%clk 0:00:21]} 54. f6 {[%clk 0:00:08]}  b4 {[%clk 0:00:22]} 55. f7 {[%clk 0:00:09]}  b3 {[%clk 0:00:22]} 56. f8=Q {[%clk 0:00:10]}  Ka4 {[%clk 0:00:22]} 57. Kd3 {[%clk 0:00:09]}  b2 {[%clk 0:00:22]} 58. Kc2 {[%clk 0:00:10]}  h5 {[%clk 0:00:21]} 59. Kxb2 {[%clk 0:00:09]}  h4 {[%clk 0:00:22]} 60. Qb8 {[%clk 0:00:08]}  Ka5 {[%clk 0:00:22]} 61. Kc3 {[%clk 0:00:09]}  Ka6 {[%clk 0:00:23]} 62. Kc4 {[%clk 0:00:10]}  Ka5 {[%clk 0:00:23]} 63. Qa7# {[%clk 0:00:10]} 1-0


[Site "https://www.chess.com"]

[Event "Titled Tuesday Blitz February 07 Late 2023"]
[White "Dzierzak, Radoslaw"]
[Black "Brilej, Jaka"]
[WhiteFideId "1161407"]
[BlackFideId "14618818"]
[WhiteElo "2220"]
[BlackElo "2321"]
[Result "0-1"]
[Round "09"]
[TimeControl "180+2"]
[Date "2023.02.07"]
[WhiteClock "0:00:03"]
[BlackClock "0:00:44"]

1. e4 {[%clk 0:02:11]}  d6 {[%clk 0:02:58]} 2. d4 {[%clk 0:02:10]}  Nf6 {[%clk 0:02:59]} 3. Nc3 {[%clk 0:02:10]}  g6 {[%clk 0:02:58]} 4. Nf3 {[%clk 0:02:11]}  Bg7 {[%clk 0:02:58]} 5. Be2 {[%clk 0:02:11]}  O-O {[%clk 0:02:57]} 6. O-O {[%clk 0:02:12]}  Bg4 {[%clk 0:02:54]} 7. Be3 {[%clk 0:02:12]}  Nc6 {[%clk 0:02:51]} 8. Qd2 {[%clk 0:02:12]}  d5 {[%clk 0:02:26]} 9. exd5 {[%clk 0:01:56]}  Nb4 {[%clk 0:02:24]} 10. a3 {[%clk 0:01:24]}  Nbxd5 {[%clk 0:02:23]} 11. Nxd5 {[%clk 0:01:24]}  Nxd5 {[%clk 0:02:23]} 12. h3 {[%clk 0:01:24]}  Nxe3 {[%clk 0:02:21]} 13. fxe3 {[%clk 0:01:19]}  Bf5 {[%clk 0:02:20]} 14. Bd3 {[%clk 0:01:18]}  Bxd3 {[%clk 0:02:18]} 15. Qxd3 {[%clk 0:01:18]}  c6 {[%clk 0:02:19]} 16. Rad1 {[%clk 0:01:16]}  Qd7 {[%clk 0:02:12]} 17. e4 {[%clk 0:01:15]}  Rad8 {[%clk 0:02:10]} 18. Qe3 {[%clk 0:01:09]}  e6 {[%clk 0:02:10]} 19. e5 {[%clk 0:01:09]}  Qd5 {[%clk 0:02:06]} 20. Rd3 {[%clk 0:01:00]}  f5 {[%clk 0:01:59]} 21. b3 {[%clk 0:00:54]}  h6 {[%clk 0:01:53]} 22. c4 {[%clk 0:00:53]}  Qa5 {[%clk 0:01:53]} 23. b4 {[%clk 0:00:52]}  Qc7 {[%clk 0:01:52]} 24. c5 {[%clk 0:00:42]}  Rd7 {[%clk 0:01:46]} 25. Nd2 {[%clk 0:00:41]}  b5 {[%clk 0:01:45]} 26. cxb6 {[%clk 0:00:38]}  axb6 {[%clk 0:01:43]} 27. Nc4 {[%clk 0:00:38]}  Rfd8 {[%clk 0:01:42]} 28. Nd6 {[%clk 0:00:38]}  Bf8 {[%clk 0:01:42]} 29. Rc1 {[%clk 0:00:35]}  Bxd6 {[%clk 0:01:40]} 30. exd6 {[%clk 0:00:34]}  Rxd6 {[%clk 0:01:39]} 31. Qxh6 {[%clk 0:00:34]}  Qg7 {[%clk 0:01:34]} 32. Qxg7+ {[%clk 0:00:30]}  Kxg7 {[%clk 0:01:35]} 33. Rdc3 {[%clk 0:00:31]}  Rxd4 {[%clk 0:01:33]} 34. Rxc6 {[%clk 0:00:31]}  R8d6 {[%clk 0:01:33]} 35. Rxd6 {[%clk 0:00:27]}  Rxd6 {[%clk 0:01:34]} 36. a4 {[%clk 0:00:21]}  Rd4 {[%clk 0:01:32]} 37. b5 {[%clk 0:00:16]}  Rxa4 {[%clk 0:01:27]} 38. Rc6 {[%clk 0:00:15]}  e5 {[%clk 0:01:26]} 39. Rxb6 {[%clk 0:00:14]}  e4 {[%clk 0:01:26]} 40. Re6 {[%clk 0:00:13]}  Rb4 {[%clk 0:01:23]} 41. b6 {[%clk 0:00:13]}  Kf7 {[%clk 0:01:23]} 42. Rc6 {[%clk 0:00:13]}  g5 {[%clk 0:01:18]} 43. g3 {[%clk 0:00:04]}  Rb2 {[%clk 0:01:04]} 44. Rc7+ {[%clk 0:00:01]}  Kf6 {[%clk 0:01:03]} 45. b7 {[%clk 0:00:02]}  f4 {[%clk 0:01:00]} 46. gxf4 {[%clk 0:00:02]}  gxf4 {[%clk 0:01:01]} 47. Kf1 {[%clk 0:00:02]}  f3 {[%clk 0:00:57]} 48. Rc4 {[%clk 0:00:02]}  Kf5 {[%clk 0:00:57]} 49. Rc2 {[%clk 0:00:01]}  Rxb7 {[%clk 0:00:52]} 50. Kf2 {[%clk 0:00:01]}  Kf4 {[%clk 0:00:52]} 51. h4 {[%clk 0:00:02]}  e3+ {[%clk 0:00:51]} 52. Kg1 {[%clk 0:00:03]}  f2+ {[%clk 0:00:47]} 53. Kg2 {[%clk 0:00:03]}  Rg7+ {[%clk 0:00:47]} 54. Kh2 {[%clk 0:00:01]}  f1=Q {[%clk 0:00:45]} 55. Rc4+ {[%clk 0:00:02]}  Kf3 {[%clk 0:00:45]} 56. Rg4 {[%clk 0:00:02]}  Rxg4 {[%clk 0:00:44]} 57. h5 {[%clk 0:00:03]}  Qg2# {[%clk 0:00:44]} 0-1


[Site "https://www.chess.com"]

[Event "Titled Tuesday Blitz February 07 Late 2023"]
[White "Mikhalsky, Vladimir"]
[Black "Gurevich, Dmitry"]
[WhiteFideId "14144352"]
[BlackFideId "2000407"]
[WhiteElo "2219"]
[BlackElo "2393"]
[Result "0-1"]
[Round "09"]
[TimeControl "180+2"]
[Date "2023.02.07"]
[WhiteClock "0:00:48"]
[BlackClock "0:00:39"]

1. d4 {[%clk 0:02:58]}  Nf6 {[%clk 0:02:59]} 2. c4 {[%clk 0:02:56]}  a6 {[%clk 0:02:59]} 3. Nc3 {[%clk 0:02:54]}  c5 {[%clk 0:02:58]} 4. d5 {[%clk 0:02:54]}  b5 {[%clk 0:02:57]} 5. Nf3 {[%clk 0:02:41]}  b4 {[%clk 0:02:56]} 6. Nb1 {[%clk 0:02:38]}  d6 {[%clk 0:02:55]} 7. b3 {[%clk 0:02:36]}  g6 {[%clk 0:02:54]} 8. Bb2 {[%clk 0:02:36]}  Bg7 {[%clk 0:02:54]} 9. e4 {[%clk 0:02:35]}  O-O {[%clk 0:02:53]} 10. Bd3 {[%clk 0:02:33]}  a5 {[%clk 0:02:48]} 11. a4 {[%clk 0:02:24]}  e5 {[%clk 0:02:37]} 12. dxe6 {[%clk 0:02:19]}  Bxe6 {[%clk 0:02:35]} 13. O-O {[%clk 0:02:19]}  Nc6 {[%clk 0:02:34]} 14. Bc2 {[%clk 0:02:12]}  Ng4 {[%clk 0:02:29]} 15. Bxg7 {[%clk 0:02:10]}  Kxg7 {[%clk 0:02:28]} 16. Nbd2 {[%clk 0:02:05]}  Qf6 {[%clk 0:02:25]} 17. h3 {[%clk 0:02:02]}  Nge5 {[%clk 0:02:24]} 18. Qe2 {[%clk 0:01:59]}  Rad8 {[%clk 0:02:19]} 19. Rad1 {[%clk 0:01:57]}  h5 {[%clk 0:02:09]} 20. Bb1 {[%clk 0:01:55]}  g5 {[%clk 0:01:45]} 21. Qe3 {[%clk 0:01:42]}  g4 {[%clk 0:01:36]} 22. Qg5+ {[%clk 0:01:41]}  Qxg5 {[%clk 0:01:27]} 23. Nxg5 {[%clk 0:01:39]}  Nd4 {[%clk 0:01:26]} 24. f4 {[%clk 0:01:29]}  gxf3 {[%clk 0:01:21]} 25. gxf3 {[%clk 0:01:21]}  Ne2+ {[%clk 0:01:11]} 26. Kh2 {[%clk 0:01:17]}  Nf4 {[%clk 0:01:08]} 27. Rg1 {[%clk 0:01:05]}  Kh6 {[%clk 0:01:06]} 28. Nf1 {[%clk 0:00:55]}  Rg8 {[%clk 0:00:47]} 29. h4 {[%clk 0:00:55]}  f6 {[%clk 0:00:44]} 30. Nxe6 {[%clk 0:00:53]}  Nxf3+ {[%clk 0:00:43]} 31. Kh1 {[%clk 0:00:48]}  Rxg1# {[%clk 0:00:39]} 0-1


[Site "https://www.chess.com"]

[Event "Titled Tuesday Blitz February 07 Late 2023"]
[White "Maltsevskaya, Aleksandra"]
[Black "Garcia Almaguer, Juan Manuel"]
[WhiteFideId "24174041"]
[BlackFideId "5110491"]
[WhiteElo "2390"]
[BlackElo "2090"]
[Result "1-0"]
[Round "09"]
[TimeControl "180+2"]
[Date "2023.02.07"]
[WhiteClock "0:00:33"]
[BlackClock "0:00:50"]

1. Nf3 {[%clk 0:02:24]}  Nf6 {[%clk 0:02:55]} 2. g3 {[%clk 0:02:25]}  d5 {[%clk 0:02:52]} 3. Bg2 {[%clk 0:02:15]}  Nc6 {[%clk 0:02:51]} 4. d3 {[%clk 0:02:12]}  e5 {[%clk 0:02:51]} 5. O-O {[%clk 0:02:13]}  h6 {[%clk 0:02:48]} 6. Nbd2 {[%clk 0:02:13]}  Bg4 {[%clk 0:02:19]} 7. h3 {[%clk 0:02:01]}  Bh5 {[%clk 0:02:18]} 8. g4 {[%clk 0:01:59]}  Bg6 {[%clk 0:02:17]} 9. Nh4 {[%clk 0:02:00]}  Bh7 {[%clk 0:02:17]} 10. e4 {[%clk 0:01:59]}  Qd7 {[%clk 0:02:15]} 11. exd5 {[%clk 0:01:58]}  Nxd5 {[%clk 0:02:16]} 12. Nc4 {[%clk 0:01:58]}  Be7 {[%clk 0:02:12]} 13. Nf3 {[%clk 0:01:57]}  f6 {[%clk 0:02:05]} 14. c3 {[%clk 0:01:56]}  O-O-O {[%clk 0:02:01]} 15. a4 {[%clk 0:01:50]}  h5 {[%clk 0:02:02]} 16. g5 {[%clk 0:01:49]}  h4 {[%clk 0:01:59]} 17. a5 {[%clk 0:01:48]}  a6 {[%clk 0:01:57]} 18. d4 {[%clk 0:01:35]}  Bf5 {[%clk 0:01:46]} 19. dxe5 {[%clk 0:01:33]}  Bxh3 {[%clk 0:01:44]} 20. Nh2 {[%clk 0:01:09]}  Bxg2 {[%clk 0:01:26]} 21. Kxg2 {[%clk 0:01:10]}  fxe5 {[%clk 0:01:20]} 22. Qg4 {[%clk 0:01:09]}  h3+ {[%clk 0:01:17]} 23. Kh1 {[%clk 0:01:09]}  Nf4 {[%clk 0:01:11]} 24. Bxf4 {[%clk 0:01:08]}  exf4 {[%clk 0:01:12]} 25. Rad1 {[%clk 0:01:07]}  Qxg4 {[%clk 0:01:11]} 26. Nxg4 {[%clk 0:01:08]}  Bxg5 {[%clk 0:01:10]} 27. Nce5 {[%clk 0:01:07]}  Nxe5 {[%clk 0:01:10]} 28. Nxe5 {[%clk 0:01:08]}  Rxd1 {[%clk 0:01:06]} 29. Rxd1 {[%clk 0:01:09]}  Bh4 {[%clk 0:01:06]} 30. Ng6 {[%clk 0:01:05]}  Rh6 {[%clk 0:01:06]} 31. Nxh4 {[%clk 0:01:00]}  Rxh4 {[%clk 0:01:07]} 32. Rg1 {[%clk 0:00:59]}  Rh5 {[%clk 0:00:57]} 33. Rxg7 {[%clk 0:00:56]}  Rxa5 {[%clk 0:00:57]} 34. Rg8+ {[%clk 0:00:36]}  Kd7 {[%clk 0:00:57]} 35. Rg7+ {[%clk 0:00:36]}  Kc6 {[%clk 0:00:55]} 36. Rg6+ {[%clk 0:00:33]}  Kc5 {[%clk 0:00:50]} 37. b4+ {[%clk 0:00:33]} 1-0


[Site "https://www.chess.com"]

[Event "Titled Tuesday Blitz February 07 Late 2023"]
[White "Yang, Qindong"]
[Black "Forgacs, Attila Jr."]
[WhiteFideId "8603758"]
[BlackFideId "773654"]
[WhiteElo "2127"]
[BlackElo "2264"]
[Result "1-0"]
[Round "09"]
[TimeControl "180+2"]
[Date "2023.02.07"]
[WhiteClock "0:00:46"]
[BlackClock "0:00:15"]

1. d4 {[%clk 0:02:59]}  Nf6 {[%clk 0:02:59]} 2. c4 {[%clk 0:02:59]}  g6 {[%clk 0:02:59]} 3. Nc3 {[%clk 0:02:59]}  d5 {[%clk 0:02:59]} 4. Nf3 {[%clk 0:02:58]}  Bg7 {[%clk 0:02:59]} 5. Qb3 {[%clk 0:02:58]}  dxc4 {[%clk 0:02:58]} 6. Qxc4 {[%clk 0:02:58]}  O-O {[%clk 0:02:58]} 7. Bf4 {[%clk 0:02:58]}  Na6 {[%clk 0:02:50]} 8. e4 {[%clk 0:02:57]}  c5 {[%clk 0:02:49]} 9. d5 {[%clk 0:02:58]}  e6 {[%clk 0:02:49]} 10. d6 {[%clk 0:02:57]}  e5 {[%clk 0:02:41]} 11. Bxe5 {[%clk 0:02:47]}  Re8 {[%clk 0:02:41]} 12. Be2 {[%clk 0:02:38]}  Be6 {[%clk 0:02:20]} 13. Qb5 {[%clk 0:02:32]}  Bg4 {[%clk 0:02:14]} 14. Bxf6 {[%clk 0:01:43]}  Bxf6 {[%clk 0:02:00]} 15. Qxb7 {[%clk 0:01:43]}  Qxd6 {[%clk 0:01:36]} 16. O-O {[%clk 0:01:37]}  Reb8 {[%clk 0:00:55]} 17. Qxa6 {[%clk 0:01:33]}  Qxa6 {[%clk 0:00:49]} 18. Bxa6 {[%clk 0:01:34]}  Rxb2 {[%clk 0:00:49]} 19. Nd5 {[%clk 0:01:27]}  Bg7 {[%clk 0:00:45]} 20. Rab1 {[%clk 0:01:23]}  Rxa2 {[%clk 0:00:45]} 21. Bc4 {[%clk 0:01:11]}  a5 {[%clk 0:00:43]} 22. Bxa2 {[%clk 0:01:11]}  a4 {[%clk 0:00:35]} 23. Ng5 {[%clk 0:01:05]}  h6 {[%clk 0:00:34]} 24. Nxf7 {[%clk 0:01:05]}  Be6 {[%clk 0:00:32]} 25. Nd6 {[%clk 0:01:02]}  a3 {[%clk 0:00:28]} 26. Ne7+ {[%clk 0:01:02]}  Kf8 {[%clk 0:00:26]} 27. Nxg6+ {[%clk 0:01:02]}  Kg8 {[%clk 0:00:21]} 28. Bxe6+ {[%clk 0:01:02]}  Kh7 {[%clk 0:00:22]} 29. Nf4 {[%clk 0:00:58]}  a2 {[%clk 0:00:21]} 30. Bxa2 {[%clk 0:00:58]}  Rxa2 {[%clk 0:00:21]} 31. Rb7 {[%clk 0:00:56]}  Kg8 {[%clk 0:00:20]} 32. Nf5 {[%clk 0:00:56]}  Be5 {[%clk 0:00:19]} 33. Nxh6+ {[%clk 0:00:55]}  Kf8 {[%clk 0:00:18]} 34. Ng6+ {[%clk 0:00:56]}  Ke8 {[%clk 0:00:17]} 35. Nxe5 {[%clk 0:00:57]}  Kd8 {[%clk 0:00:18]} 36. Rd1+ {[%clk 0:00:55]}  Kc8 {[%clk 0:00:18]} 37. Rf7 {[%clk 0:00:51]}  Re2 {[%clk 0:00:15]} 38. Nf5 {[%clk 0:00:49]}  Rxe4 {[%clk 0:00:14]} 39. Nd6+ {[%clk 0:00:47]}  Kd8 {[%clk 0:00:14]} 40. Nxe4+ {[%clk 0:00:48]}  Ke8 {[%clk 0:00:15]} 41. Nf6# {[%clk 0:00:46]} 1-0


[Site "https://www.chess.com"]

[Event "Titled Tuesday Blitz February 07 Late 2023"]
[White "Rian, Kapriaga"]
[Black "Reprintsev, Alexander"]
[WhiteFideId "7103263"]
[BlackFideId "14100541"]
[WhiteElo "2089"]
[BlackElo "2253"]
[Result "0-1"]
[Round "09"]
[TimeControl "180+2"]
[Date "2023.02.07"]
[WhiteClock "0:00:02"]
[BlackClock "0:00:20"]

1. d4 {[%clk 0:03:00]}  d5 {[%clk 0:03:00]} 2. Nf3 {[%clk 0:03:00]}  Nc6 {[%clk 0:03:00]} 3. Bf4 {[%clk 0:02:59]}  Bg4 {[%clk 0:03:00]} 4. e3 {[%clk 0:02:58]}  e6 {[%clk 0:03:00]} 5. h3 {[%clk 0:02:57]}  Bf5 {[%clk 0:02:58]} 6. Bd3 {[%clk 0:02:51]}  Bxd3 {[%clk 0:02:51]} 7. cxd3 {[%clk 0:02:48]}  Bd6 {[%clk 0:02:52]} 8. Bg5 {[%clk 0:02:45]}  f6 {[%clk 0:02:51]} 9. Bh4 {[%clk 0:02:43]}  g5 {[%clk 0:02:51]} 10. Bg3 {[%clk 0:02:26]}  Bxg3 {[%clk 0:02:51]} 11. fxg3 {[%clk 0:02:26]}  Qd6 {[%clk 0:02:51]} 12. Kf2 {[%clk 0:02:25]}  h5 {[%clk 0:02:47]} 13. Nc3 {[%clk 0:02:24]}  O-O-O {[%clk 0:02:43]} 14. Rc1 {[%clk 0:02:15]}  a6 {[%clk 0:02:42]} 15. Na4 {[%clk 0:02:05]}  Nge7 {[%clk 0:02:42]} 16. Nc5 {[%clk 0:02:02]}  Nf5 {[%clk 0:02:42]} 17. Qb3 {[%clk 0:01:18]}  Qxg3+ {[%clk 0:02:41]} 18. Kg1 {[%clk 0:01:18]}  Na5 {[%clk 0:02:14]} 19. Qb4 {[%clk 0:01:17]}  Nxe3 {[%clk 0:02:12]} 20. Rh2 {[%clk 0:01:16]}  b6 {[%clk 0:01:55]} 21. Nxa6 {[%clk 0:01:13]}  Kb7 {[%clk 0:01:30]} 22. Nc5+ {[%clk 0:00:38]}  Ka7 {[%clk 0:01:27]} 23. Qb5 {[%clk 0:00:38]}  Rd6 {[%clk 0:01:06]} 24. b4 {[%clk 0:00:24]}  bxc5 {[%clk 0:01:04]} 25. Qxa5+ {[%clk 0:00:22]}  Ra6 {[%clk 0:01:04]} 26. Qxc5+ {[%clk 0:00:21]}  Kb8 {[%clk 0:01:02]} 27. Ne5 {[%clk 0:00:06]}  Nc4 {[%clk 0:00:39]} 28. Nxc4 {[%clk 0:00:02]}  dxc4 {[%clk 0:00:28]} 29. Qxc4 {[%clk 0:00:02]}  Rxa2 {[%clk 0:00:20]} 0-1


[Site "https://www.chess.com"]

[Event "Titled Tuesday Blitz February 07 Late 2023"]
[White "Van Dael, Siem"]
[Black "Dragomirescu, Angela"]
[WhiteFideId "1049771"]
[BlackFideId "1209914"]
[WhiteElo "2319"]
[BlackElo "2130"]
[Result "1-0"]
[Round "09"]
[TimeControl "180+2"]
[Date "2023.02.07"]
[WhiteClock "0:00:35"]
[BlackClock "0:00:23"]

1. e4 {[%clk 0:03:00]}  e5 {[%clk 0:02:56]} 2. Nf3 {[%clk 0:02:58]}  Nc6 {[%clk 0:02:57]} 3. Bc4 {[%clk 0:02:50]}  Bc5 {[%clk 0:02:56]} 4. c3 {[%clk 0:02:40]}  Nf6 {[%clk 0:02:55]} 5. d4 {[%clk 0:02:29]}  exd4 {[%clk 0:02:55]} 6. b4 {[%clk 0:02:22]}  Bb6 {[%clk 0:02:50]} 7. e5 {[%clk 0:02:21]}  d5 {[%clk 0:02:44]} 8. exf6 {[%clk 0:02:20]}  dxc4 {[%clk 0:02:44]} 9. Qe2+ {[%clk 0:02:21]}  Be6 {[%clk 0:02:43]} 10. b5 {[%clk 0:02:21]}  Na5 {[%clk 0:02:09]} 11. cxd4 {[%clk 0:02:15]}  Qxf6 {[%clk 0:01:53]} 12. O-O {[%clk 0:02:11]}  O-O {[%clk 0:01:48]} 13. Bg5 {[%clk 0:02:07]}  Qf5 {[%clk 0:01:46]} 14. Nc3 {[%clk 0:02:05]}  Rfe8 {[%clk 0:01:41]} 15. Rfe1 {[%clk 0:02:02]}  h6 {[%clk 0:01:16]} 16. Be3 {[%clk 0:01:55]}  Rad8 {[%clk 0:01:07]} 17. Rad1 {[%clk 0:01:53]}  Bd5 {[%clk 0:00:56]} 18. Ne5 {[%clk 0:01:51]}  c6 {[%clk 0:00:51]} 19. a4 {[%clk 0:01:41]}  cxb5 {[%clk 0:00:50]} 20. axb5 {[%clk 0:01:41]}  f6 {[%clk 0:00:45]} 21. Nxd5 {[%clk 0:01:40]}  Rxd5 {[%clk 0:00:46]} 22. Nxc4 {[%clk 0:01:40]}  Nxc4 {[%clk 0:00:47]} 23. Qxc4 {[%clk 0:01:40]}  Rd8 {[%clk 0:00:48]} 24. Rd2 {[%clk 0:01:33]}  Kh7 {[%clk 0:00:46]} 25. h3 {[%clk 0:01:23]}  Rxb5 {[%clk 0:00:43]} 26. Red1 {[%clk 0:01:18]}  Rbd5 {[%clk 0:00:42]} 27. Kh2 {[%clk 0:01:14]}  h5 {[%clk 0:00:42]} 28. g3 {[%clk 0:01:08]}  R8d7 {[%clk 0:00:40]} 29. h4 {[%clk 0:01:03]}  Qe4 {[%clk 0:00:36]} 30. Kg1 {[%clk 0:00:56]}  Qg6 {[%clk 0:00:33]} 31. Kh2 {[%clk 0:00:56]}  Bc7 {[%clk 0:00:33]} 32. Qb3 {[%clk 0:00:48]}  Qg4 {[%clk 0:00:32]} 33. Kg2 {[%clk 0:00:45]}  Qe4+ {[%clk 0:00:31]} 34. f3 {[%clk 0:00:44]}  Qg6 {[%clk 0:00:29]} 35. Bf2 {[%clk 0:00:44]}  b5 {[%clk 0:00:28]} 36. Rc2 {[%clk 0:00:42]}  Bb6 {[%clk 0:00:29]} 37. Rc8 {[%clk 0:00:38]}  Rd8 {[%clk 0:00:19]} 38. Rxd8 {[%clk 0:00:37]}  Rxd8 {[%clk 0:00:20]} 39. Qxb5 {[%clk 0:00:34]}  Qc2 {[%clk 0:00:21]} 40. Qxh5+ {[%clk 0:00:34]}  Kg8 {[%clk 0:00:21]} 41. Re1 {[%clk 0:00:34]}  Bxd4 {[%clk 0:00:20]} 42. Re8+ {[%clk 0:00:34]}  Rxe8 {[%clk 0:00:20]} 43. Qxe8+ {[%clk 0:00:34]}  Kh7 {[%clk 0:00:21]} 44. Qh5+ {[%clk 0:00:34]}  Kg8 {[%clk 0:00:22]} 45. Qd5+ {[%clk 0:00:35]}  Kh7 {[%clk 0:00:22]} 46. Qxd4 {[%clk 0:00:35]}  a5 {[%clk 0:00:22]} 47. Qe4+ {[%clk 0:00:33]}  Qxe4 {[%clk 0:00:22]} 48. fxe4 {[%clk 0:00:34]}  a4 {[%clk 0:00:23]} 49. Bd4 {[%clk 0:00:35]} 1-0


[Site "https://www.chess.com"]

[Event "Titled Tuesday Blitz February 07 Late 2023"]
[White "Ruiz Aguilar, Pablo Alexander"]
[Black "Vega Gutierrez, Sabrina"]
[WhiteFideId "4401352"]
[BlackFideId "2219026"]
[WhiteElo "2161"]
[BlackElo "2377"]
[Result "1-0"]
[Round "09"]
[TimeControl "180+2"]
[Date "2023.02.07"]
[WhiteClock "0:01:13"]
[BlackClock "0:00:04"]

1. e4 {[%clk 0:03:00]}  c5 {[%clk 0:02:52]} 2. Nf3 {[%clk 0:03:00]}  e6 {[%clk 0:02:49]} 3. d4 {[%clk 0:03:01]}  cxd4 {[%clk 0:02:46]} 4. Nxd4 {[%clk 0:03:01]}  Nf6 {[%clk 0:02:46]} 5. Nc3 {[%clk 0:02:59]}  d6 {[%clk 0:02:47]} 6. Be3 {[%clk 0:02:57]}  Be7 {[%clk 0:02:44]} 7. Be2 {[%clk 0:02:57]}  O-O {[%clk 0:02:41]} 8. O-O {[%clk 0:02:58]}  Nc6 {[%clk 0:02:39]} 9. f4 {[%clk 0:02:56]}  e5 {[%clk 0:02:37]} 10. Nxc6 {[%clk 0:02:53]}  bxc6 {[%clk 0:02:37]} 11. fxe5 {[%clk 0:02:53]}  dxe5 {[%clk 0:02:38]} 12. Qxd8 {[%clk 0:02:52]}  Bxd8 {[%clk 0:02:30]} 13. Kh1 {[%clk 0:02:49]}  Bb6 {[%clk 0:02:28]} 14. Bg5 {[%clk 0:02:48]}  Nd7 {[%clk 0:01:48]} 15. Bc4 {[%clk 0:02:46]}  Bc5 {[%clk 0:00:43]} 16. Rxf7 {[%clk 0:02:45]}  Rxf7 {[%clk 0:00:41]} 17. Rf1 {[%clk 0:02:45]}  Nf6 {[%clk 0:00:29]} 18. Bxf6 {[%clk 0:02:45]}  gxf6 {[%clk 0:00:25]} 19. Rxf6 {[%clk 0:02:44]}  Rb8 {[%clk 0:00:04]} 20. Rxf7 {[%clk 0:02:30]}  Kh8 {[%clk 0:00:04]} 21. b3 {[%clk 0:02:23]}  Bb4 {[%clk 0:00:03]} 22. Ne2 {[%clk 0:02:16]}  Bg4 {[%clk 0:00:03]} 23. h3 {[%clk 0:02:14]}  Bh5 {[%clk 0:00:03]} 24. Rxa7 {[%clk 0:01:51]}  Rd8 {[%clk 0:00:03]} 25. Ng3 {[%clk 0:01:44]}  Rd1+ {[%clk 0:00:03]} 26. Kh2 {[%clk 0:01:44]}  Bg6 {[%clk 0:00:03]} 27. Nf5 {[%clk 0:01:27]}  Bxf5 {[%clk 0:00:02]} 28. exf5 {[%clk 0:01:27]}  Bd2 {[%clk 0:00:03]} 29. f6 {[%clk 0:01:17]}  Bf4+ {[%clk 0:00:03]} 30. g3 {[%clk 0:01:17]}  Rd2+ {[%clk 0:00:03]} 31. Kh1 {[%clk 0:01:14]}  Rd1+ {[%clk 0:00:03]} 32. Kg2 {[%clk 0:01:14]}  Rd2+ {[%clk 0:00:04]} 33. Kf3 {[%clk 0:01:13]} 1-0


[Site "https://www.chess.com"]